[Event "51st Rilton Cup 2023-24"]
[Site "Stockholm"]
[Date "2024.01.04"]
[Round "8.19"]
[White "Marn, Jan"]
[Black "Krishna C R G"]
[Result "1/2-1/2"]
[ECO "D13"]
[WhiteElo "2322"]
[BlackElo "2396"]
[Annotator "RC"]
[PlyCount "274"]
[EventDate "2023.12.27"]
[EventType "swiss"]
[EventCountry "SWE"]
[SourceTitle "playchess.com"]
[Source "ChessBase"]
[SourceQuality "1"]
[TimeControl "40/5400+30:1800+30"]

1. d4 {[%emt 0:00:03]} d5 {[%emt 0:11:51]} 2. c4 {[%emt 0:03:21]} c6 {[%emt 0:00:07]} 3. cxd5 {[%emt 0:00:06]} cxd5 {[%emt 0:00:03]} 4. Nc3 {[%emt 0:00:06]} Nf6 {[%emt 0:00:17]} 5. Bf4 {[%emt 0:00:05]} Nc6 {[%emt 0:00:14]} 6. e3 {[%emt 0:00:04]} a6 {[%emt 0:00:32]} 7. Be2 {[%emt 0:00:43]} Bf5 {[%emt 0:11:49]} 8. Nf3 {[%emt 0:00:09]} e6 {[%emt 0:00:30]} 9. Qb3 {[%emt 0:02:34]} Bd6 {[%emt 0:02:02]} 10. Bxd6 {[%emt 0:02:38]} Qxd6 {[%emt 0:00:21]} 11. Qxb7 {[%emt 0:00:13]} O-O {[%emt 0:00:10]} 12. Qb3 {[%emt 0:00:06]} Rfc8 {[%emt 0:36:14]} 13. O-O {[%emt 0:09:12]} Rab8 {[%emt 0:00:22]} 14. Qa4 {[%emt 0:07:37]} Rxb2 {[%emt 0:02:30]} 15. Rfc1 {[%emt 0:05:59]} h6 {[%emt 0:13:28]} 16. Qxa6 {[%emt 0:03:26]} Qb8 {[%emt 0:00:32]} 17. Na4 {[%emt 0:15:43]} Rc2 {[%emt 0:00:02]} 18. Rxc2 {[%emt 0:00:08]} Bxc2 {[%emt 0:00:03]} 19. Nc5 {[%emt 0:02:46]} Ne4 {[%emt 0:03:33]} 20. Nxe4 {[%emt 0:11:32]} dxe4 {[%emt 0:00:02]} 21. Ne5 {[%emt 0:00:11]} Nxe5 {[%emt 0:02:29]} 22. dxe5 {[%emt 0:00:05]} Rd8 {[%emt 0:07:05]} 23. Qa5 {[%emt 0:02:47]} Rd5 {[%emt 0:04:53]} 24. Qc3 {[%emt 0:01:29]} Bd3 {[%emt 0:01:20]} 25. Bf1 {[%emt 0:01:18]} Bxf1 {[%emt 0:01:11]} 26. Rxf1 {[%emt 0:01:35]} Rd3 {[%emt 0:00:59]} 27. Qc5 {[%emt 0:05:23]} Rd5 {[%emt 0:00:01]} 28. Qc2 {[%emt 0:06:18]} Qxe5 {[%emt 0:00:37]} 29. h3 {[%emt 0:01:53]} Rc5 {[%emt 0:01:10]} 30. Qe2 {[%emt 0:01:22]} Qc3 {[%emt 0:00:29]} 31. Rd1 {[%emt 0:00:35]} Rd5 {[%emt 0:00:24]} 32. Rxd5 {[%emt 0:04:22]} exd5 {[%emt 0:00:01]} 33. Qd1 {[%emt 0:00:08]} Qa5 {[%emt 0:00:25]} 34. a4 {[%emt 0:00:16]} g6 {[%emt 0:00:38]} 35. g3 {[%emt 0:01:46]} h5 {[%emt 0:00:05]} 36. h4 {[%emt 0:00:46]} Kf8 {[%emt 0:00:02]} 37. Kg2 {[%emt 0:01:42]} Ke7 {[%emt 0:01:18]} 38. Qd4 {[%emt 0:00:26]} Ke6 {[%emt 0:00:13]} 39. Qd1 {[%emt 0:00:20]} Ke7 {[%emt 0:01:09]} 40. Qc2 {[%emt 0:00:07]} Kd6 {[%emt 0:00:13]} 41. Qb3 {[%emt 0:38:11]} Ke6 {[%emt 0:30:47]} 42. Qa3 {[%emt 0:02:42]} f6 {[%emt 0:00:00]} 43. Qb3 {[%emt 0:00:00]} g5 {[%emt 0:00:00]} 44. Qd1 {[%emt 0:00:00]} g4 {[%emt 0:00:00]} 45. Qd4 {[%emt 0:00:00]} Ke7 {[%emt 0:03:07]} 46. Qa1 {[%emt 0:00:00]} Ke6 {[%emt 0:00:00]} 47. Qa2 {[%emt 0:00:00]} Kf7 {[%emt 0:00:00]} 48. Qa3 {[%emt 0:00:00]} Ke6 {[%emt 0:00:00]} 49. Qb3 {[%emt 0:00:00]} Kf5 {[%emt 0:00:00]} 50. Qc2 {[%emt 0:00:00]} Qa6 {[%emt 0:00:00]} 51. Qb3 {[%emt 0:00:00]} Qa5 {[%emt 0:00:00]} 52. Qb7 {[%emt 0:00:00]} Qxa4 {[%emt 0:00:00]} 53. Qh7+ {[%emt 0:00:00]} Ke6 {[%emt 0:00:00]} 54. Qxh5 {[%emt 0:00:00]} Qd1 {[%emt 0:00:00]} 55. Qe8+ {[%emt 0:00:00]} Kf5 {[%emt 0:00:00]} 56. Qb5 {[%emt 0:00:00]} Kg6 {[%emt 0:00:00]} 57. Qb2 {[%emt 0:00:00]} Qf3+ {[%emt 0:00:00]} 58. Kh2 {[%emt 0:00:00]} Qd1 {[%emt 0:00:00]} 59. Kg2 {[%emt 0:04:10]} Qf3+ {[%emt 0:00:00]} 60. Kg1 {[%emt 0:00:08]} Qd1+ {[%emt 0:00:00]} 61. Kh2 {[%emt 0:00:04]} Kf5 {[%emt 0:00:14]} 62. Qb5 {[%emt 0:02:11]} Kg6 {[%emt 0:00:47]} 63. Qe8+ {[%emt 0:00:11]} Kg7 {[%emt 0:00:01]} 64. Qc8 {[%emt 0:03:04]} Qf3 {[%emt 0:05:57]} 65. Qc2 {[%emt 0:00:21]} Qf5 {[%emt 0:00:31]} 66. Kg2 {[%emt 0:00:09]} Qf3+ {[%emt 0:01:21]} 67. Kh2 {[%emt 0:00:12]} Qf5 {[%emt 0:00:02]} 68. Kg1 {[%emt 0:00:05]} Kg6 {[%emt 0:00:04]} 69. Qc6 {[%emt 0:00:10]} Qe5 {[%emt 0:00:07]} 70. Qa8 {[%emt 0:01:41]} Qe6 {[%emt 0:01:17]} 71. Qh8 {[%emt 0:01:23]} Qf5 {[%emt 0:00:00]} 72. Qg8+ {[%emt 0:00:38]} Kh6 {[%emt 0:00:01]} 73. Qf8+ {[%emt 0:00:11]} Kh7 {[%emt 0:00:41]} 74. Qf7+ {[%emt 0:00:57]} Kh6 {[%emt 0:00:03]} 75. Qg8 {[%emt 0:00:13]} Qd7 {[%emt 0:00:40]} 76. Qh8+ {[%emt 0:01:10]} Kg6 {[%emt 0:00:01]} 77. Qg8+ {[%emt 0:00:00]} Kh6 {[%emt 0:00:01]} 78. Qb8 {[%emt 0:01:07]} Kg7 {[%emt 0:01:32]} 79. Kf1 {[%emt 0:00:54]} d4 {[%emt 0:02:24]} 80. exd4 {[%emt 0:00:18]} Qxd4 {[%emt 0:00:01]} 81. Qf4 {[%emt 0:00:42]} Qd1+ {[%emt 0:00:10]} 82. Kg2 {[%emt 0:00:06]} Qe2 {[%emt 0:00:02]} 83. Qe3 {[%emt 0:00:45]} Qc4 {[%emt 0:02:01]} 84. Qa7+ {[%emt 0:00:25]} Kg6 {[%emt 0:00:05]} 85. Qd7 {[%emt 0:00:26]} Qe2 {[%emt 0:00:36]} 86. Qe8+ {[%emt 0:00:17]} Kg7 {[%emt 0:00:06]} 87. Qe7+ {[%emt 0:01:13]} Kg6 {[%emt 0:00:02]} 88. Qa3 {[%emt 0:00:21]} Qb5 {[%emt 0:00:54]} 89. Qa8 {[%emt 0:00:40]} Qf5 {[%emt 0:00:15]} 90. Qg8+ {[%emt 0:00:19]} Kh6 {[%emt 0:00:01]} 91. Kg1 {[%emt 0:00:36]} Qf3 {[%emt 0:00:54]} 92. Qh8+ {[%emt 0:00:05]} Kg6 {[%emt 0:00:01]} 93. Qg8+ {[%emt 0:00:05]} Kh6 {[%emt 0:00:01]} 94. Qd5 {[%emt 0:01:21]} Kg7 {[%emt 0:01:15]} 95. Qd4 {[%emt 0:00:06]} Kg6 {[%emt 0:00:18]} 96. Kf1 {[%emt 0:00:07]} Qh1+ {[%emt 0:00:19]} 97. Ke2 {[%emt 0:00:04]} Qb1 {[%emt 0:00:27]} 98. Ke3 {[%emt 0:01:19]} Qb3+ {[%emt 0:00:01]} 99. Ke2 {[%emt 0:00:16]} Qb5+ {[%emt 0:00:19]} 100. Ke1 {[%emt 0:00:06]} Qf5 {[%emt 0:01:59]} 101. Kd2 {[%emt 0:01:17]} Qa5+ {[%emt 0:00:11]} 102. Qc3 {[%emt 0:00:27]} Qf5 {[%emt 0:00:09]} 103. Qe3 {[%emt 0:00:14]} Qa5+ {[%emt 0:00:17]} 104. Kc2 {[%emt 0:00:06]} Qa4+ {[%emt 0:00:18]} 105. Kc3 {[%emt 0:00:06]} Qa3+ {[%emt 0:00:41]} 106. Kc4 {[%emt 0:01:37]} Qa4+ {[%emt 0:00:01]} 107. Kc5 {[%emt 0:00:09]} Qa5+ {[%emt 0:00:34]} 108. Kd4 {[%emt 0:01:04]} Qa4+ {[%emt 0:00:19]} 109. Kc3 {[%emt 0:00:18]} Qa3+ {[%emt 0:00:06]} 110. Kd2 {[%emt 0:00:04]} Qb2+ {[%emt 0:00:06]} 111. Ke1 {[%emt 0:00:04]} Qb1+ {[%emt 0:00:03]} 112. Ke2 {[%emt 0:00:08]} Qb5+ {[%emt 0:00:02]} 113. Kd1 {[%emt 0:00:11]} Qb1+ {[%emt 0:00:08]} 114. Qc1 {[%emt 0:00:14]} Qb4 {[%emt 0:01:09]} 115. Qc2 {[%emt 0:01:38]} Qd4+ {[%emt 0:04:25]} 116. Ke2 {[%emt 0:00:02]} Kh5 {[%emt 0:00:10]} 117. Qd2 {[%emt 0:00:53]} Qe5 {[%emt 0:00:00]} 118. Ke3 {[%emt 0:01:02]} Qf5 {[%emt 0:00:01]} 119. Qe2 {[%emt 0:00:58]} Kg6 {[%emt 0:00:02]} 120. Kd2 {[%emt 0:00:24]} Qa5+ {[%emt 0:00:28]} 121. Kd1 {[%emt 0:00:24]} Qa1+ {[%emt 0:00:22]} 122. Kd2 {[%emt 0:00:03]} Qa5+ {[%emt 0:00:32]} 123. Ke3 {[%emt 0:00:48]} Qf5 {[%emt 0:00:06]} 124. Qc2 {[%emt 0:00:08]} Qf3+ {[%emt 0:00:17]} 125. Kd4 {[%emt 0:00:06]} Kh5 {[%emt 0:00:14]} 126. Qxe4 {[%emt 0:01:21]} Qxf2+ {[%emt 0:00:01]} 127. Qe3 {[%emt 0:00:06]} Qf3 {[%emt 0:02:44]} 128. Qd3 {[%emt 0:01:15]} Qf2+ {[%emt 0:00:37]} 129. Kc4 {[%emt 0:00:24]} f5 {[%emt 0:01:13]} 130. Qd7 {[%emt 0:00:30]} Qc2+ {[%emt 0:00:38]} 131. Kb5 {[%emt 0:00:02]} Qb3+ {[%emt 0:00:13]} 132. Ka6 {[%emt 0:00:04]} Qa3+ {[%emt 0:00:43]} 133. Kb7 {[%emt 0:00:01]} Qb4+ {[%emt 0:00:06]} 134. Kc8 {[%emt 0:00:59]} Qc5+ {[%emt 0:01:04]} 135. Kb7 {[%emt 0:00:09]} Qb4+ {[%emt 0:00:11]} 136. Kc8 {[%emt 0:00:03]} Qc5+ {[%emt 0:00:28]} 137. Kb7 {[%emt 0:00:03]} Qb4+ {[%emt 0:00:25]} 1/2-1/2

[Event "51st Rilton Cup 2023-24"]
[Site "Stockholm"]
[Date "2024.01.04"]
[Round "8.20"]
[White "Olsson, William"]
[Black "Le Goff, Ronan"]
[Result "1-0"]
[ECO "E04"]
[WhiteElo "2379"]
[BlackElo "2287"]
[Annotator "RC"]
[PlyCount "141"]
[EventDate "2023.12.27"]
[EventType "swiss"]
[EventCountry "SWE"]
[SourceTitle "playchess.com"]
[Source "ChessBase"]
[SourceQuality "1"]
[TimeControl "40/5400+30:1800+30"]

1. c4 {[%emt 0:00:02]} e6 {[%emt 0:03:48]} 2. g3 {[%emt 0:00:19]} d5 {[%emt 0:01:06]} 3. Bg2 {[%emt 0:00:08]} Nf6 {[%emt 0:00:08]} 4. d4 {[%emt 0:00:07]} Nbd7 {[%emt 0:01:33]} 5. Nf3 {[%emt 0:01:38]} dxc4 {[%emt 0:01:26]} 6. O-O {[%emt 0:06:20]} Rb8 {[%emt 0:02:25]} 7. Qc2 {[%emt 0:06:41]} b5 {[%emt 0:04:32]} 8. b3 {[%emt 0:00:18]} Bb7 {[%emt 0:03:02]} 9. bxc4 {[%emt 0:02:41]} bxc4 {[%emt 0:04:54]} 10. Nc3 {[%emt 0:07:22]} Bb4 {[%emt 0:11:05]} 11. Rd1 {[%emt 0:11:08]} O-O {[%emt 0:11:05]} 12. Bf4 {[%emt 0:01:41]} h6 {[%emt 0:15:14]} 13. Ne5 {[%emt 0:06:00]} Bxc3 {[%emt 0:01:37]} 14. Qxc3 {[%emt 0:00:43]} Bxg2 {[%emt 0:00:27]} 15. Kxg2 {[%emt 0:00:07]} Nd5 {[%emt 0:01:03]} 16. Qxc4 {[%emt 0:03:00]} Rb4 {[%emt 0:00:45]} 17. Qc1 {[%emt 0:00:45]} Nxf4+ {[%emt 0:02:19]} 18. Qxf4 {[%emt 0:00:13]} Nxe5 {[%emt 0:00:13]} 19. Qxe5 {[%emt 0:00:08]} Qd6 {[%emt 0:00:52]} 20. Rd2 {[%emt 0:09:13]} Rfb8 {[%emt 0:03:58]} 21. Qf4 {[%emt 0:01:50]} Rc4 {[%emt 0:03:47]} 22. Rad1 {[%emt 0:08:28]} Qxf4 {[%emt 0:05:10]} 23. gxf4 {[%emt 0:00:08]} Rb5 {[%emt 0:00:25]} 24. e4 {[%emt 0:03:33]} f5 {[%emt 0:02:47]} 25. e5 {[%emt 0:03:19]} Kf7 {[%emt 0:01:16]} 26. Kf3 {[%emt 0:03:03]} Rbb4 {[%emt 0:00:57]} 27. Ke3 {[%emt 0:02:48]} Ra4 {[%emt 0:01:33]} 28. Rb2 {[%emt 0:02:33]} g5 {[%emt 0:01:22]} 29. fxg5 {[%emt 0:00:54]} hxg5 {[%emt 0:00:07]} 30. Rd3 {[%emt 0:01:20]} Kg6 {[%emt 0:00:22]} 31. Rbd2 {[%emt 0:03:02]} c5 {[%emt 0:00:38]} 32. d5 {[%emt 0:01:14]} Re4+ {[%emt 0:04:32]} 33. Kf3 {[%emt 0:00:05]} exd5 {[%emt 0:00:56]} 34. Rxd5 {[%emt 0:00:06]} g4+ {[%emt 0:04:09]} 35. Kg2 {[%emt 0:00:37]} Rad4 {[%emt 0:01:49]} 36. R2xd4 {[%emt 0:03:08]} cxd4 {[%emt 0:00:09]} 37. h3 {[%emt 0:03:49]} gxh3+ {[%emt 0:01:19]} 38. Kxh3 {[%emt 0:00:04]} Kf7 {[%emt 0:00:17]} 39. f3 {[%emt 0:00:05]} Re3 {[%emt 0:00:50]} 40. Kg3 {[%emt 0:00:14]} Ke6 {[%emt 0:01:16]} 41. Rxd4 {[%emt 0:30:35]} Rxe5 {[%emt 0:30:18]} 42. Ra4 {[%emt 0:01:12]} a5 {[%emt 0:00:09]} 43. Kf4 {[%emt 0:01:29]} Rb5 {[%emt 0:00:23]} 44. Kg5 {[%emt 0:00:22]} Rc5 {[%emt 0:00:48]} 45. f4 {[%emt 0:01:57]} Rc2 {[%emt 0:00:00]} 46. Rxa5 {[%emt 0:00:00]} Rg2+ {[%emt 0:00:00]} 47. Kh6 {[%emt 0:00:00]} Rh2+ {[%emt 0:00:00]} 48. Kg7 {[%emt 0:00:00]} Rg2+ {[%emt 0:00:00]} 49. Kf8 {[%emt 0:00:00]} Rf2 {[%emt 0:00:00]} 50. Ra4 {[%emt 0:00:00]} Re2 {[%emt 0:00:00]} 51. Ra6+ {[%emt 0:00:00]} Kd5 {[%emt 0:00:00]} 52. Kf7 {[%emt 0:00:00]} Re4 {[%emt 0:00:00]} 53. Ra5+ {[%emt 0:00:00]} Kd6 {[%emt 0:00:00]} 54. Rxf5 {[%emt 0:00:00]} Ra4 {[%emt 0:00:00]} 55. Rf6+ {[%emt 0:00:00]} Kd5 {[%emt 0:00:00]} 56. Kg6 {[%emt 0:00:00]} Rxa2 {[%emt 0:00:00]} 57. Rb6 {[%emt 0:00:00]} Rg2+ {[%emt 0:00:00]} 58. Kf6 {[%emt 0:00:00]} Rh2 {[%emt 0:00:00]} 59. Rb5+ {[%emt 0:00:00]} Kd6 {[%emt 0:00:42]} 60. f5 {[%emt 0:00:00]} Rh6+ {[%emt 0:00:49]} 61. Kg7 {[%emt 0:00:00]} Rh1 {[%emt 0:01:30]} 62. f6 {[%emt 0:00:00]} Rg1+ {[%emt 0:02:01]} 63. Kf7 {[%emt 0:00:00]} Rf1 {[%emt 0:00:50]} 64. Rb6+ {[%emt 0:02:33]} Kd7 {[%emt 0:00:29]} 65. Re6 {[%emt 0:00:13]} Rg1 {[%emt 0:01:02]} 66. Re2 {[%emt 0:00:04]} Kd6 {[%emt 0:00:12]} 67. Kf8 {[%emt 0:00:21]} Rh1 {[%emt 0:00:33]} 68. f7 {[%emt 0:00:09]} Kd7 {[%emt 0:00:20]} 69. Rg2 {[%emt 0:00:48]} Rf1 {[%emt 0:00:22]} 70. Kg7 {[%emt 0:00:06]} Ke7 {[%emt 0:00:10]} 71. Re2+ {[%emt 0:00:06]} 1-0

[Event "51st Rilton Cup 2023-24"]
[Site "Stockholm"]
[Date "2024.01.04"]
[Round "8.21"]
[White "Mamedov, Edgar"]
[Black "Kavutskiy, Konstantin"]
[Result "1/2-1/2"]
[ECO "E62"]
[WhiteElo "2321"]
[BlackElo "2384"]
[Annotator "RC"]
[PlyCount "79"]
[EventDate "2023.12.27"]
[EventType "swiss"]
[EventCountry "SWE"]
[SourceTitle "playchess.com"]
[Source "ChessBase"]
[SourceQuality "1"]
[TimeControl "40/5400+30:1800+30"]

1. d4 {[%emt 0:00:37]} Nf6 {[%emt 0:00:15]} 2. c4 {[%emt 0:00:50]} g6 {[%emt 0:00:06]} 3. g3 {[%emt 0:00:17]} Bg7 {[%emt 0:00:11]} 4. Bg2 {[%emt 0:00:33]} d6 {[%emt 0:00:17]} 5. Nc3 {[%emt 0:00:21]} O-O {[%emt 0:00:16]} 6. Nf3 {[%emt 0:00:13]} Bf5 {[%emt 0:03:12]} 7. Nh4 {[%emt 0:03:33]} Bc8 {[%emt 0:00:17]} 8. Nf3 {[%emt 0:01:07]} Bf5 {[%emt 0:04:45]} 9. Nh4 {[%emt 0:00:20]} Bc8 {[%emt 0:00:07]} 10. O-O {[%emt 0:00:04]} a5 {[%emt 0:00:46]} 11. Nf3 {[%emt 0:06:22]} Bf5 {[%emt 0:00:47]} 12. Nh4 {[%emt 0:27:47]} Bc8 {[%emt 0:00:29]} 13. h3 {[%emt 0:02:08]} e5 {[%emt 0:05:05]} 14. Nf3 {[%emt 0:00:54]} Nc6 {[%emt 0:02:14]} 15. dxe5 {[%emt 0:02:51]} dxe5 {[%emt 0:01:15]} 16. Bg5 {[%emt 0:09:04]} Be6 {[%emt 0:00:59]} 17. Nd2 {[%emt 0:03:41]} h6 {[%emt 0:04:16]} 18. Bxf6 {[%emt 0:01:31]} Bxf6 {[%emt 0:00:08]} 19. Nde4 {[%emt 0:00:59]} Be7 {[%emt 0:03:55]} 20. Nd5 {[%emt 0:04:37]} f5 {[%emt 0:06:14]} 21. Nec3 {[%emt 0:01:24]} Bc5 {[%emt 0:05:44]} 22. Nb5 {[%emt 0:02:33]} Rc8 {[%emt 0:07:47]} 23. Ndxc7 {[%emt 0:02:50]} Qxd1 {[%emt 0:05:03]} 24. Rfxd1 {[%emt 0:03:32]} Bxc4 {[%emt 0:00:08]} 25. Bd5+ {[%emt 0:02:40]} Bxd5 {[%emt 0:02:13]} 26. Nxd5 {[%emt 0:00:09]} Rfd8 {[%emt 0:08:43]} 27. Kg2 {[%emt 0:09:42]} Nd4 {[%emt 0:06:02]} 28. Nxd4 {[%emt 0:10:05]} Rxd5 {[%emt 0:00:12]} 29. Nb3 {[%emt 0:00:34]} Rxd1 {[%emt 0:00:42]} 30. Rxd1 {[%emt 0:00:04]} Bb4 {[%emt 0:00:06]} 31. Rc1 {[%emt 0:03:35]} Rxc1 {[%emt 0:04:23]} 32. Nxc1 {[%emt 0:00:03]} Kf7 {[%emt 0:00:06]} 33. f3 {[%emt 0:01:10]} e4 {[%emt 0:00:34]} 34. fxe4 {[%emt 0:00:05]} fxe4 {[%emt 0:00:06]} 35. Nb3 {[%emt 0:00:14]} Kf6 {[%emt 0:15:39]} 36. Nd4 {[%emt 0:00:53]} Bc5 {[%emt 0:01:00]} 37. Nc2 {[%emt 0:00:22]} Kf5 {[%emt 0:02:01]} 38. b3 {[%emt 0:00:11]} b5 {[%emt 0:02:27]} 39. Ne1 {[%emt 0:00:56]} Ke5 {[%emt 0:03:34]} 40. Nc2 {[%emt 0:00:06]} 1/2-1/2

[Event "51st Rilton Cup 2023-24"]
[Site "Stockholm"]
[Date "2024.01.04"]
[Round "8.22"]
[White "Farokhi, Keyvan"]
[Black "Citak, Selim"]
[Result "1/2-1/2"]
[ECO "B35"]
[WhiteElo "2298"]
[BlackElo "2350"]
[Annotator "RC"]
[PlyCount "120"]
[EventDate "2023.12.27"]
[EventType "swiss"]
[EventCountry "SWE"]
[SourceTitle "playchess.com"]
[Source "ChessBase"]
[SourceQuality "1"]
[TimeControl "40/5400+30:1800+30"]

1. e4 {[%emt 0:00:04]} c5 {[%emt 0:00:26]} 2. Nf3 {[%emt 0:00:09]} Nc6 {[%emt 0:00:16]} 3. d4 {[%emt 0:00:10]} cxd4 {[%emt 0:00:05]} 4. Nxd4 {[%emt 0:00:05]} g6 {[%emt 0:00:39]} 5. Nc3 {[%emt 0:00:11]} Bg7 {[%emt 0:00:12]} 6. Be3 {[%emt 0:00:09]} Nf6 {[%emt 0:00:14]} 7. Bc4 {[%emt 0:00:11]} O-O {[%emt 0:00:23]} 8. Bb3 {[%emt 0:00:05]} d5 {[%emt 0:00:12]} 9. exd5 {[%emt 0:09:01]} Na5 {[%emt 0:00:10]} 10. h3 {[%emt 0:03:16]} Nxb3 {[%emt 0:00:51]} 11. Nxb3 {[%emt 0:00:18]} b5 {[%emt 0:00:11]} 12. Nxb5 {[%emt 0:19:14]} Nxd5 {[%emt 0:01:28]} 13. Bd4 {[%emt 0:00:20]} e5 {[%emt 0:00:29]} 14. Bc5 {[%emt 0:00:36]} Nf4 {[%emt 0:00:39]} 15. Bxf8 {[%emt 0:11:16]} Qxf8 {[%emt 0:00:06]} 16. Qd6 {[%emt 0:13:02]} Nxg2+ {[%emt 0:11:37]} 17. Kf1 {[%emt 0:00:37]} Bb7 {[%emt 0:03:09]} 18. Qxf8+ {[%emt 0:02:45]} Bxf8 {[%emt 0:01:35]} 19. Rg1 {[%emt 0:00:23]} Nf4 {[%emt 0:09:41]} 20. c4 {[%emt 0:06:29]} Be4 {[%emt 0:03:21]} 21. Rg3 {[%emt 0:12:06]} Bd3+ {[%emt 0:04:22]} 22. Rxd3 {[%emt 0:00:43]} Nxd3 {[%emt 0:00:09]} 23. Ke2 {[%emt 0:00:18]} Nxb2 {[%emt 0:05:12]} 24. c5 {[%emt 0:00:44]} e4 {[%emt 0:11:10]} 25. Rc1 {[%emt 0:02:57]} Nd3 {[%emt 0:02:22]} 26. Rc4 {[%emt 0:00:13]} a6 {[%emt 0:19:46]} 27. Nc7 {[%emt 0:00:49]} Rc8 {[%emt 0:00:11]} 28. Nxa6 {[%emt 0:00:23]} f5 {[%emt 0:00:27]} 29. Nb4 {[%emt 0:03:54]} Ne5 {[%emt 0:05:23]} 30. Rc2 {[%emt 0:00:18]} Kf7 {[%emt 0:02:03]} 31. Nd5 {[%emt 0:02:39]} Rd8 {[%emt 0:06:15]} 32. Nb6 {[%emt 0:00:54]} Nc6 {[%emt 0:02:55]} 33. Rd2 {[%emt 0:01:56]} Rxd2+ {[%emt 0:00:13]} 34. Kxd2 {[%emt 0:00:02]} Ke6 {[%emt 0:00:44]} 35. a4 {[%emt 0:00:46]} f4 {[%emt 0:01:45]} 36. Ke2 {[%emt 0:01:51]} f3+ {[%emt 0:02:09]} 37. Kf1 {[%emt 0:00:53]} g5 {[%emt 0:03:17]} 38. a5 {[%emt 0:01:09]} Nxa5 {[%emt 0:01:00]} 39. Nxa5 {[%emt 0:00:05]} Bxc5 {[%emt 0:00:05]} 40. Nbc4 {[%emt 0:04:05]} h5 {[%emt 0:02:23]} 41. Nb3 {[%emt 0:34:32]} Ba7 {[%emt 0:04:00]} 42. Nbd2 {[%emt 0:00:00]} Kd5 {[%emt 0:03:08]} 43. Ne3+ {[%emt 0:00:00]} Ke5 {[%emt 0:00:16]} 44. Kg1 {[%emt 0:00:00]} Kd4 {[%emt 0:02:05]} 45. Nf5+ {[%emt 0:00:00]} Kd3 {[%emt 0:04:09]} 46. Nf1 {[%emt 0:00:00]} h4 {[%emt 0:05:19]} 47. N1e3 {[%emt 0:00:00]} Ke2 {[%emt 0:02:20]} 48. Ng4 {[%emt 0:00:00]} Bc5 {[%emt 0:01:25]} 49. Nfe3 {[%emt 0:00:00]} Ba7 {[%emt 0:00:25]} 50. Nd5 {[%emt 0:00:00]} Bd4 {[%emt 0:01:12]} 51. Nge3 {[%emt 0:00:00]} Ba7 {[%emt 0:02:33]} 52. Nc3+ {[%emt 0:00:00]} Kd3 {[%emt 0:00:02]} 53. Ned5 {[%emt 0:00:00]} Bc5 {[%emt 0:02:37]} 54. Kf1 {[%emt 0:00:00]} Kd4 {[%emt 0:00:29]} 55. Nf6 {[%emt 0:00:00]} e3 {[%emt 0:05:30]} 56. fxe3+ {[%emt 0:00:53]} Kxc3 {[%emt 0:00:06]} 57. Ne4+ {[%emt 0:00:13]} Kc4 {[%emt 0:01:11]} 58. Kf2 {[%emt 0:01:28]} Be7 {[%emt 0:00:15]} 59. Kxf3 {[%emt 0:00:14]} Kd5 {[%emt 0:00:02]} 60. Nf2 {[%emt 0:00:52]} Ke5 {[%emt 0:01:23]} 1/2-1/2

[Event "51st Rilton Cup 2023-24"]
[Site "Stockholm"]
[Date "2024.01.04"]
[Round "8.23"]
[White "Kokoszczynski, Jan"]
[Black "Hagner, Bennet"]
[Result "1-0"]
[ECO "C72"]
[WhiteElo "2250"]
[BlackElo "2348"]
[Annotator "RC"]
[PlyCount "79"]
[EventDate "2023.12.27"]
[EventType "swiss"]
[EventCountry "SWE"]
[SourceTitle "playchess.com"]
[Source "ChessBase"]
[SourceQuality "1"]
[TimeControl "40/5400+30:1800+30"]

1. e4 {[%emt 0:05:58]} e5 {[%emt 0:00:02]} 2. Nf3 {[%emt 0:00:24]} Nc6 {[%emt 0:00:06]} 3. Bb5 {[%emt 0:00:07]} a6 {[%emt 0:00:05]} 4. Ba4 {[%emt 0:00:09]} d6 {[%emt 0:00:05]} 5. O-O {[%emt 0:05:06]} Bd7 {[%emt 0:00:16]} 6. c3 {[%emt 0:00:50]} g5 {[%emt 0:00:23]} 7. d4 {[%emt 0:01:33]} g4 {[%emt 0:00:05]} 8. Ne1 {[%emt 0:00:24]} h5 {[%emt 0:00:18]} 9. f4 {[%emt 0:17:17]} exd4 {[%emt 0:00:54]} 10. cxd4 {[%emt 0:00:53]} d5 {[%emt 0:00:07]} 11. e5 {[%emt 0:08:43]} Nh6 {[%emt 0:01:02]} 12. Nc3 {[%emt 0:03:52]} Ne7 {[%emt 0:00:39]} 13. f5 {[%emt 0:10:01]} Nhxf5 {[%emt 0:01:46]} 14. Bg5 {[%emt 0:04:44]} Bxa4 {[%emt 0:15:36]} 15. Qxa4+ {[%emt 0:05:42]} Qd7 {[%emt 0:07:02]} 16. Qxd7+ {[%emt 0:01:10]} Kxd7 {[%emt 0:00:03]} 17. Bxe7 {[%emt 0:03:51]} Nxe7 {[%emt 0:00:03]} 18. Rxf7 {[%emt 0:00:08]} Ke8 {[%emt 0:12:43]} 19. e6 {[%emt 0:04:29]} Rh6 {[%emt 0:01:18]} 20. Nd3 {[%emt 0:00:05]} Rxe6 {[%emt 0:00:54]} 21. Raf1 {[%emt 0:00:33]} Bh6 {[%emt 0:01:03]} 22. Ne5 {[%emt 0:05:12]} Rd8 {[%emt 0:06:09]} 23. Rh7 {[%emt 0:04:08]} Be3+ {[%emt 0:07:49]} 24. Kh1 {[%emt 0:00:04]} Rh6 {[%emt 0:00:08]} 25. Rxh6 {[%emt 0:02:52]} Bxh6 {[%emt 0:00:06]} 26. Nf7 {[%emt 0:00:02]} Be3 {[%emt 0:07:03]} 27. Nxd8 {[%emt 0:00:07]} Kxd8 {[%emt 0:00:05]} 28. Ne2 {[%emt 0:02:09]} b6 {[%emt 0:01:16]} 29. Rf6 {[%emt 0:04:56]} Kd7 {[%emt 0:06:40]} 30. g3 {[%emt 0:01:45]} c5 {[%emt 0:06:49]} 31. dxc5 {[%emt 0:04:21]} bxc5 {[%emt 0:00:13]} 32. Rxa6 {[%emt 0:00:13]} d4 {[%emt 0:00:56]} 33. Kg2 {[%emt 0:00:13]} Nd5 {[%emt 0:05:58]} 34. Kf1 {[%emt 0:00:17]} c4 {[%emt 0:00:05]} 35. Ra4 {[%emt 0:02:33]} c3 {[%emt 0:03:03]} 36. bxc3 {[%emt 0:02:20]} d3 {[%emt 0:00:09]} 37. Ra5 {[%emt 0:01:45]} Nf6 {[%emt 0:05:42]} 38. Nf4 {[%emt 0:00:00]} d2 {[%emt 0:02:20]} 39. Ke2 {[%emt 0:00:00]} h4 {[%emt 0:00:06]} 40. Nd5 {[%emt 0:00:34]} 1-0